bitfinex/quotes_SOLUSD_20241218
["timestamp","ask_amount","ask_price","bid_price","bid_amount"]
[1734497226538,11.28259516,215.61,215.49,2.58721859]
[1734497226539,11.28259516,215.62,215.55,11.28259516]
[1734497226767,11.28259516,215.61,215.55,11.28259516]
[1734497227350,11.28259516,215.61,215.54,11.28259516]
[1734497227549,11.28259516,215.6,215.53,11.28259516]
[1734497227762,11.28259516,215.59,215.52,11.28259516]
[1734497228565,11.28259516,215.62,215.55,11.28259516]
[1734497229362,11.28259516,215.61,215.54,11.28259516]
[1734497229755,11.28259516,215.6,215.53,11.28259516]
[1734497230094,11.28259516,215.61,215.54,11.28259516]
[1734497230275,11.28259516,215.64,215.57,11.28259516]
[1734497230455,11.28259516,215.63,215.56,11.28259516]
[1734497230655,11.28259516,215.61,215.54,11.28259516]
[1734497231089,11.28259516,215.62,215.55,11.28259516]
[1734497231394,11.28259516,215.63,215.56,11.28259516]
[1734497231598,18.539581,215.66,215.49,16.19000425]
[1734497231599,11.28259516,215.65,215.58,11.28259516]
[1734497231897,11.28259516,215.64,215.57,11.28259516]
[1734497232417,11.28259516,215.67,215.6,11.28259516]
[1734497232903,11.28259516,215.66,215.59,11.28259516]
[1734497233102,11.28259516,215.64,215.57,11.28259516]
[1734497233263,11.28259516,215.65,215.58,11.28259516]
[1734497233595,11.28259516,215.64,215.57,11.28259516]
[1734497233756,31.28259516,215.67,215.6,11.28259516]
[1734497233956,20.0,215.67,215.61,11.28259516]
[1734497234156,11.28259516,215.66,215.59,11.28259516]
[1734497234475,20.0,215.67,215.58,11.28259516]
[1734497234476,11.28259516,215.65,215.58,11.28259516]
[1734497234658,11.28259516,215.64,215.57,11.28259516]
[1734497234857,11.28259516,215.65,215.58,11.28259516]
[1734497235280,11.28259516,215.66,215.58,11.28259516]
[1734497235792,20.0,215.67,215.61,11.28259516]
[1734497236003,31.28259516,215.67,215.6,11.28259516]
[1734497236240,11.28259516,215.65,215.58,11.28259516]
[1734497236743,11.28259516,215.64,215.57,11.28259516]
[1734497237044,11.28259516,215.62,215.55,11.28259516]
[1734497237396,11.28259516,215.66,215.59,11.28259516]
[1734497237597,11.28259516,215.67,215.6,11.28259516]
[1734497237826,11.282595,215.7,215.59,11.28259516]
[1734497237827,11.28259516,215.66,215.59,11.28259516]
[1734497238123,11.28259516,215.65,215.58,11.28259516]
[1734497238331,11.28259516,215.66,215.59,11.28259516]
[1734497238839,11.28259516,215.67,215.6,11.28259516]
[1734497239135,11.28259516,215.71,215.64,11.28259516]
[1734497239297,11.28259516,215.69,215.62,11.28259516]
[1734497240094,11.28259516,215.71,215.64,11.28259516]
[1734497240494,11.28259516,215.7,215.63,11.28259516]
[1734497240924,6.2324,215.79,215.69,11.28259516]
[1734497241102,6.2324,215.79,215.6,16.3196085]
[1734497241103,6.2324,215.79,215.71,11.28259516]
[1734497241426,11.28259516,215.77,215.7,11.28259516]
[1734497241601,11.28259516,215.76,215.67,20.0]
[1734497241923,11.28259516,215.77,215.7,11.28259516]
[1734497243692,11.28259516,215.8,215.73,11.28259516]
[1734497244026,8.2573,215.85,215.75,11.28259516]
[1734497244027,11.28259516,215.82,215.75,11.28259516]
[1734497244219,11.28259516,215.83,215.76,11.28259516]
[1734497244694,10.05966785,215.9,215.76,11.28259516]
[1734497244901,11.28259516,215.85,215.78,11.28259516]
[1734497246104,11.28259516,215.84,215.77,11.28259516]
[1734497246544,11.28259516,215.81,215.74,11.28259516]
[1734497246838,11.28259516,215.76,215.69,11.28259516]
[1734497247002,11.28259516,215.75,215.67,13.30499516]
[1734497247205,11.28259516,215.73,215.67,2.0224]
[1734497247447,11.28259516,215.73,215.65,11.28259516]
[1734497247623,11.28259516,215.74,215.67,11.28259516]
[1734497248639,11.28259516,215.75,215.68,11.28259516]
[1734497248841,31.28259516,215.77,215.7,11.28259516]
[1734497249454,11.28259516,215.75,215.68,11.28259516]
[1734497249753,11.28259516,215.71,215.64,11.28259516]
[1734497250237,11.28259516,215.73,215.66,11.28259516]
[1734497250748,11.28259516,215.72,215.65,11.28259516]
[1734497251040,11.28259516,215.73,215.66,11.28259516]
[1734497251281,11.28259516,215.74,215.66,11.28259516]
[1734497251481,11.28259516,215.73,215.66,11.28259516]
[1734497251649,11.28259516,215.72,215.65,11.28259516]
[1734497251839,11.28259516,215.73,215.66,11.28259516]
[1734497252040,11.28259516,215.72,215.65,11.28259516]
[1734497253839,11.28259516,215.74,215.67,11.28259516]
[1734497254666,11.28259516,215.76,215.69,11.28259516]
[1734497255086,11.28259516,215.74,215.67,11.28259516]
[1734497255395,11.28259516,215.75,215.68,11.28259516]
[1734497255994,11.28259516,215.77,215.7,11.28259516]
[1734497256296,11.28259516,215.78,215.71,11.28259516]
[1734497256593,11.28259516,215.8,215.73,11.28259516]
[1734497256792,11.28259516,215.81,215.74,11.28259516]
[1734497257150,11.28259516,215.82,215.75,11.28259516]
[1734497257380,11.28259516,215.83,215.75,11.28259516]
[1734497258395,11.28259516,215.8,215.73,11.28259516]
[1734497258561,14.31670913,215.88,215.71,1.9645]
[1734497258562,11.28259516,215.77,215.71,1.9645]
[1734497259076,23.776884,215.87,215.71,1.9645]
[1734497259077,11.28259516,215.78,215.71,13.24709516]
[1734497259266,11.28259516,215.79,215.72,11.28259516]
[1734497259874,11.28259516,215.78,215.71,13.24709516]
[1734497260253,11.28259516,215.77,215.71,1.9645]
[1734497260450,11.28259516,215.78,215.71,13.24709516]
[1734497261788,11.28259516,215.8,215.73,11.28259516]
[1734497262560,11.28259516,215.81,215.74,11.28259516]
[1734497262760,11.28259516,215.8,215.73,11.28259516]
[1734497262979,11.28259516,215.81,215.74,11.28259516]
[1734497263771,11.28259516,215.8,215.73,11.28259516]
[1734497264272,11.28259516,215.77,215.71,13.24709516]
[1734497264475,11.28259516,215.78,215.71,13.24709516]
[1734497265484,11.5823,215.85,215.71,1.9645]
[1734497265683,11.28259516,215.74,215.68,11.28259516]
[1734497265882,11.28259516,215.72,215.65,13.24709516]
[1734497266217,11.28259516,215.72,215.65,11.28259516]
[1734497266368,11.28259516,215.7,215.63,11.28259516]
[1734497266567,11.28259516,215.71,215.64,11.28259516]
[1734497266920,11.28259516,215.7,215.63,11.28259516]
[1734497267202,11.28259516,215.7,215.6,8.1757]
[1734497267203,11.28259516,215.68,215.61,11.28259516]
[1734497267709,11.28259516,215.67,215.6,13.24709516]
[1734497267876,11.28259516,215.67,215.6,11.28259516]
[1734497268483,11.28259516,215.66,215.59,11.28259516]
[1734497270205,11.28259516,215.67,215.6,11.28259516]
[1734497270364,11.28259516,215.68,215.61,11.28259516]
[1734497270562,11.28259516,215.68,215.62,11.28259516]
[1734497270759,11.28259516,215.71,215.64,11.28259516]
[1734497270986,11.28259516,215.72,215.65,11.28259516]
[1734497271191,11.28259516,215.74,215.67,11.28259516]
[1734497273864,2.0464,215.81,215.66,2.0892]
[1734497274058,11.28259516,215.78,215.71,11.28259516]
[1734497274491,11.28259516,215.77,215.7,11.28259516]
[1734497275185,11.28259516,215.78,215.71,11.28259516]
[1734497275388,11.28259516,215.76,215.7,11.28259516]
[1734497275785,11.28259516,215.76,215.69,11.28259516]
[1734497276369,11.28259516,215.75,215.68,11.28259516]
[1734497276596,11.28259516,215.74,215.67,11.28259516]
[1734497276887,11.28259516,215.7,215.63,11.28259516]
[1734497277076,11.28259516,215.68,215.61,13.37179516]
[1734497277395,11.28259516,215.68,215.61,11.28259516]
[1734497277611,11.28259516,215.69,215.62,11.28259516]
[1734497277908,11.28259516,215.68,215.61,11.28259516]
[1734497278088,6.2814,215.74,215.56,2.0892]
[1734497278089,11.28259516,215.69,215.62,11.28259516]
[1734497278291,11.28259516,215.68,215.62,11.28259516]
[1734497278489,11.28259516,215.7,215.63,11.28259516]
[1734497278791,11.28259516,215.69,215.62,11.28259516]
[1734497279215,11.28259516,215.7,215.63,11.28259516]
[1734497279510,31.28259516,215.71,215.63,11.28259516]
[1734497279812,23.776884,215.7,215.63,11.28259516]
[1734497280013,20.0,215.71,215.65,11.28259516]
[1734497280195,11.28259516,215.7,215.63,11.28259516]
[1734497280396,11.28259516,215.69,215.62,11.28259516]
[1734497280987,11.28259516,215.7,215.63,11.28259516]
[1734497281201,11.28259516,215.66,215.59,11.28259516]
[1734497281517,31.28259516,215.64,215.57,11.28259516]
[1734497281688,31.28259516,215.64,215.55,11.28259516]
[1734497281689,11.28259516,215.62,215.55,11.28259516]
[1734497281889,11.28259516,215.61,215.54,11.28259516]
[1734497282221,11.28259516,215.63,215.56,11.28259516]
[1734497282398,11.28259516,215.61,215.54,11.28259516]
[1734497283198,35.05947916,215.62,215.55,11.28259516]
[1734497284320,11.28259516,215.63,215.56,11.28259516]
[1734497284490,20.0,215.64,215.58,11.28259516]
[1734497284692,31.28259516,215.64,215.57,11.28259516]
[1734497284904,20.0,215.64,215.58,11.28259516]
[1734497285112,20.0,215.64,215.57,11.28259516]
[1734497285113,31.28259516,215.64,215.57,11.28259516]
[1734497285718,20.0,215.64,215.58,11.28259516]
[1734497286218,11.28259516,215.63,215.56,11.28259516]
[1734497287218,11.28259516,215.62,215.55,11.28259516]
[1734497287709,35.05947916,215.61,215.53,11.28259516]
[1734497288019,11.28259516,215.59,215.52,11.28259516]
[1734497288316,11.28259516,215.6,215.53,11.28259516]
[1734497288907,11.28259516,215.56,215.49,11.28259516]
[1734497289248,11.5951,215.61,215.47,11.28259516]
[1734497289249,11.28259516,215.53,215.47,11.28259516]
[1734497289419,11.28259516,215.52,215.46,11.28259516]
[1734497289926,11.28259516,215.56,215.49,11.28259516]
[1734497290249,11.28259516,215.6,215.53,11.28259516]
[1734497290546,11.28259516,215.61,215.54,11.28259516]
[1734497290831,11.28259516,215.6,215.53,11.28259516]
[1734497290993,13.5739,215.65,215.51,11.28259516]
[1734497290994,35.05947916,215.58,215.51,11.28259516]
[1734497291193,23.776884,215.58,215.52,11.28259516]
[1734497291807,11.28259516,215.61,215.54,11.28259516]
[1734497292017,11.28259516,215.6,215.53,11.28259516]
[1734497292219,11.28259516,215.58,215.51,11.28259516]
[1734497292418,11.28259516,215.55,215.48,11.28259516]
[1734497292715,17.8109,215.64,215.45,0.5664696]
[1734497292932,11.28259516,215.54,215.47,11.28259516]
[1734497293112,11.28259516,215.57,215.5,11.28259516]
[1734497294311,11.28259516,215.58,215.51,11.28259516]
[1734497294526,11.28259516,215.59,215.52,11.28259516]
[1734497294831,11.28259516,215.59,215.53,11.28259516]
[1734497295132,11.28259516,215.57,215.5,11.28259516]
[1734497295424,11.28259516,215.53,215.46,11.28259516]
[1734497296028,35.05947916,215.52,215.45,11.84906476]
[1734497296328,35.05947916,215.51,215.45,0.5664696]
[1734497296724,23.776884,215.49,215.45,0.5664696]
[1734497297223,35.05947916,215.5,215.45,0.5664696]
[1734497297409,23.776884,215.5,215.45,0.5664696]
[1734497297831,35.05947916,215.5,215.45,0.5664696]
[1734497298419,11.28259516,215.52,215.45,11.84906476]
[1734497298925,11.28259516,215.51,215.45,0.5664696]
[1734497299099,11.28259516,215.49,215.45,0.5664696]
[1734497299302,11.28259516,215.48,215.45,0.5664696]
[1734497299615,23.776884,215.47,215.45,0.5664696]
[1734497300023,23.776884,215.48,215.45,0.5664696]
[1734497300228,11.28259516,215.47,215.45,0.5664696]
[1734497300637,35.05947916,215.46,215.45,0.5664696]
[1734497301255,23.776884,215.46,215.45,0.5664696]
[1734497301456,11.28259516,215.5,215.45,0.5664696]
[1734497301755,23.776884,215.49,215.45,0.5664696]
[1734497303015,11.28259516,215.51,215.45,0.5664696]
[1734497304524,23.776884,215.5,215.45,0.5664696]
[1734497305152,23.776884,215.5,215.45,11.84906476]
[1734497305444,11.28259516,215.53,215.46,11.28259516]
[1734497305652,11.28259516,215.53,215.45,11.84906476]
[1734497305946,11.28259516,215.53,215.46,11.28259516]
[1734497307951,11.28259516,215.51,215.45,0.5664696]
[1734497308130,11.28259516,215.5,215.45,0.5664696]
[1734497308331,11.28259516,215.51,215.45,0.5664696]
[1734497308645,23.776884,215.5,215.45,0.5664696]
[1734497310051,11.28259516,215.52,215.45,11.84906476]
[1734497310236,11.282595,215.54,215.48,11.28259516]
[1734497310738,11.282595,215.54,215.47,11.28259516]
[1734497310739,22.56519016,215.54,215.47,11.28259516]
[1734497310957,11.28259516,215.54,215.47,11.28259516]
[1734497311335,11.28259516,215.55,215.48,11.28259516]
[1734497311536,11.28259516,215.57,215.5,11.28259516]
[1734497311850,11.28259516,215.55,215.48,11.28259516]
[1734497312252,11.28259516,215.54,215.46,11.28259516]
[1734497312551,11.28259516,215.54,215.47,11.28259516]
[1734497313967,11.28259516,215.57,215.5,11.28259516]
[1734497314266,11.28259516,215.58,215.5,11.28259516]
[1734497314482,11.28259516,215.57,215.5,11.28259516]
[1734497314971,11.28259516,215.56,215.49,11.28259516]
[1734497315335,2.0658,215.6,215.5,11.28259516]
[1734497315336,11.28259516,215.57,215.5,11.28259516]
[1734497315772,11.28259516,215.58,215.51,11.28259516]
[1734497316274,11.28259516,215.59,215.51,11.28259516]
[1734497316629,11.28259516,215.58,215.51,11.28259516]
[1734497317254,11.28259516,215.59,215.51,11.28259516]
[1734497317556,11.28259516,215.6,215.53,11.28259516]
[1734497318061,11.28259516,215.59,215.52,11.28259516]
[1734497318262,11.28259516,215.6,215.53,11.28259516]
[1734497318574,11.28259516,215.56,215.49,11.28259516]
[1734497318845,11.28259516,215.55,215.48,11.28259516]
[1734497319188,11.28259516,215.56,215.46,20.0]
[1734497319363,11.28259516,215.56,215.5,11.28259516]
[1734497319561,11.28259516,215.57,215.5,11.28259516]
[1734497319869,11.28259516,215.58,215.51,11.28259516]
[1734497320200,31.28259516,215.6,215.53,11.28259516]
[1734497320492,11.28259516,215.59,215.52,11.28259516]
[1734497320698,11.28259516,215.58,215.51,11.28259516]
[1734497321759,11.28259516,215.64,215.57,11.28259516]
[1734497322098,11.28259516,215.65,215.58,11.28259516]
[1734497322310,11.28259516,215.66,215.59,11.28259516]
[1734497323066,13.36939516,215.67,215.59,11.28259516]
[1734497323283,11.28259516,215.66,215.59,11.28259516]
[1734497323600,23.776884,215.65,215.59,11.28259516]
[1734497323893,6.5376,215.69,215.53,2.77845969]
[1734497324078,22.56519016,215.7,215.63,11.28259516]
[1734497324497,11.28259516,215.7,215.63,11.28259516]
[1734497324703,11.28259516,215.69,215.61,11.28259516]
[1734497324857,11.28259516,215.68,215.6,11.28259516]
[1734497325206,23.776884,215.66,215.6,11.28259516]
[1734497325563,35.05947916,215.66,215.59,11.28259516]
[1734497325788,23.776884,215.66,215.6,11.28259516]
[1734497326903,23.776884,215.66,215.59,11.28259516]
[1734497327247,11.28259516,215.65,215.58,11.28259516]
[1734497327458,23.776884,215.66,215.58,11.28259516]
[1734497327742,11.28259516,215.65,215.58,11.28259516]
[1734497328301,23.776884,215.64,215.53,13.36519516]
[1734497328523,11.28259516,215.61,215.53,13.36519516]
[1734497328745,11.28259516,215.61,215.54,11.28259516]
[1734497329031,11.28259516,215.62,215.55,11.28259516]
[1734497330325,35.05947916,215.6,215.53,13.36519516]
[1734497330622,23.776884,215.6,215.53,13.36519516]
[1734497331023,11.28259516,215.62,215.55,11.28259516]
[1734497331449,11.28259516,215.63,215.56,11.28259516]
[1734497331755,23.776884,215.62,215.56,11.28259516]
[1734497332049,11.28259516,215.63,215.56,11.28259516]
[1734497332249,11.28259516,215.64,215.57,11.28259516]
[1734497332420,23.776884,215.63,215.58,11.28259516]
[1734497332737,11.28259516,215.62,215.55,11.28259516]
[1734497333041,11.28259516,215.63,215.56,11.28259516]
[1734497333723,11.28259516,215.64,215.56,11.28259516]
[1734497334134,11.28259516,215.62,215.55,11.28259516]
[1734497334331,11.28259516,215.62,215.54,11.28259516]
[1734497334940,11.28259516,215.6,215.53,13.36519516]
[1734497335212,11.28259516,215.59,215.52,11.28259516]
[1734497335548,11.28259516,215.56,215.49,11.28259516]
[1734497335834,11.28259516,215.57,215.5,11.28259516]
[1734497336375,11.28259516,215.56,215.49,11.28259516]
[1734497336519,11.28259516,215.55,215.48,11.28259516]
[1734497337220,11.28259516,215.57,215.5,11.28259516]
[1734497337547,35.05947916,215.56,215.49,11.28259516]
[1734497337759,23.776884,215.54,215.48,11.28259516]
[1734497337966,35.05947916,215.54,215.47,11.28259516]
[1734497338260,11.28259516,215.53,215.46,11.28259516]
[1734497338429,11.596,215.59,215.45,0.5664696]
[1734497338430,35.05947916,215.52,215.45,11.84906476]
[1734497338634,11.28259516,215.51,215.45,0.5664696]
[1734497338836,35.05947916,215.52,215.45,11.84906476]
[1734497339552,23.776884,215.52,215.46,11.28259516]
[1734497339739,11.28259516,215.51,215.45,0.5664696]
[1734497340133,23.776884,215.5,215.45,0.5664696]
[1734497340743,11.28259516,215.49,215.45,0.5664696]
[1734497341071,11.28259516,215.53,215.46,11.28259516]
[1734497341379,23.776884,215.53,215.47,11.28259516]
[1734497341617,23.776884,215.53,215.46,11.28259516]
[1734497342322,23.776884,215.53,215.47,11.28259516]
[1734497342821,23.776884,215.53,215.46,11.28259516]
[1734497343109,23.776884,215.53,215.47,11.28259516]
[1734497343333,23.776884,215.54,215.48,11.28259516]
[1734497343470,35.05947916,215.54,215.47,11.28259516]
[1734497345026,23.776884,215.56,215.5,11.28259516]
[1734497345266,11.28259516,215.6,215.53,11.28259516]
[1734497345640,6.4111,215.62,215.52,11.28259516]
[1734497345641,11.28259516,215.59,215.52,11.28259516]
[1734497346559,35.05947916,215.58,215.51,11.28259516]
[1734497346929,23.776884,215.58,215.53,11.28259516]
[1734497347254,23.776884,215.59,215.53,11.28259516]
[1734497349032,11.28259516,215.57,215.5,11.28259516]
[1734497349369,11.28259516,215.58,215.51,11.28259516]
[1734497349655,11.28259516,215.55,215.48,11.28259516]
[1734497349856,11.28259516,215.57,215.49,11.28259516]
[1734497350041,23.776884,215.56,215.5,11.28259516]
[1734497351117,23.776884,215.57,215.5,11.28259516]
[1734497351954,23.776884,215.58,215.53,11.28259516]
[1734497352154,23.776884,215.59,215.54,11.28259516]
[1734497352371,35.05947916,215.6,215.53,11.28259516]
[1734497352737,20.0,215.57,215.53,11.28259516]
[1734497352937,20.0,215.57,215.46,7.01044428]
[1734497352938,20.0,215.57,215.52,11.28259516]
[1734497353340,20.0,215.57,215.53,11.28259516]
[1734497353639,35.05947916,215.6,215.53,11.28259516]
[1734497353839,2.0875,215.64,215.56,11.28259516]
[1734497354080,11.28259516,215.64,215.57,11.28259516]
[1734497354387,11.28259516,215.61,215.54,11.28259516]
[1734497355242,11.5923,215.66,215.52,13.33979516]
[1734497355243,11.28259516,215.59,215.52,13.33979516]
[1734497355678,35.05947916,215.58,215.51,11.28259516]
[1734497355841,11.28259516,215.56,215.49,11.28259516]
[1734497356042,23.776884,215.56,215.5,11.28259516]
[1734497356254,23.776884,215.56,215.51,11.28259516]
[1734497356581,20.0,215.54,215.5,11.28259516]
[1734497357856,20.0,215.54,215.48,13.33979516]
[1734497358186,23.776884,215.53,215.48,2.0572]
[1734497358364,23.776884,215.53,215.47,11.28259516]
[1734497359983,23.776884,215.53,215.49,11.28259516]
[1734497360144,20.0,215.54,215.49,11.28259516]
[1734497360351,23.776884,215.55,215.5,11.28259516]
[1734497360547,23.776884,215.57,215.5,11.28259516]
[1734497360774,23.776884,215.57,215.45,0.5664696]
[1734497360775,23.776884,215.57,215.51,11.28259516]
[1734497360982,23.776884,215.57,215.45,0.5664696]
[1734497360983,11.28259516,215.6,215.53,11.28259516]
[1734497361194,13.37009516,215.61,215.53,11.28259516]
[1734497361350,11.28259516,215.61,215.54,11.28259516]
[1734497361755,11.28259516,215.61,215.53,11.28259516]
[1734497362152,11.28259516,215.62,215.55,11.28259516]
[1734497362651,11.28259516,215.65,215.57,11.28259516]
[1734497363290,19.76639516,215.67,215.6,11.28259516]
[1734497363651,13.35529516,215.67,215.6,11.28259516]
[1734497364282,2.0727,215.67,215.61,11.28259516]
[1734497364591,20.0,215.65,215.6,11.28259516]
[1734497364884,20.0,215.65,215.59,11.28259516]
[1734497365871,31.28259516,215.65,215.58,11.28259516]
[1734497366051,20.0,215.65,215.59,11.28259516]
[1734497366758,20.0,215.65,215.6,11.28259516]
[1734497367177,20.0,215.65,215.59,11.28259516]
[1734497367378,20.0,215.65,215.6,11.28259516]
[1734497367699,20.0,215.65,215.59,11.28259516]
[1734497367915,34.15509016,215.71,215.61,11.28259516]
[1734497367916,11.28259516,215.68,215.61,11.28259516]
[1734497368057,11.28259516,215.68,215.57,2.0673]
[1734497368058,11.282595,215.71,215.66,11.28259516]
[1734497368259,11.28259516,215.75,215.68,11.28259516]
[1734497369492,11.5855,215.79,215.69,11.28259516]
[1734497369493,11.28259516,215.76,215.69,11.28259516]
[1734497369694,6.6396,215.84,215.74,11.28259516]
[1734497369865,11.28259516,215.81,215.74,11.28259516]
[1734497370488,11.28259516,215.8,215.73,11.28259516]
[1734497371006,23.776884,215.79,215.74,11.28259516]
[1734497371159,11.28259516,215.79,215.72,11.28259516]
[1734497371362,23.776884,215.78,215.72,11.28259516]
[1734497371788,35.05947916,215.78,215.71,11.28259516]
[1734497372109,11.28259516,215.77,215.7,11.28259516]
[1734497372589,23.776884,215.76,215.7,11.28259516]
[1734497374093,23.776884,215.77,215.71,11.28259516]
[1734497374588,35.05947916,215.77,215.7,11.28259516]
[1734497374788,11.28259516,215.76,215.69,11.28259516]
[1734497375034,35.05947916,215.75,215.68,11.28259516]
[1734497375224,35.05947916,215.74,215.67,11.28259516]
[1734497375625,11.28259516,215.74,215.67,11.28259516]
[1734497376245,23.776884,215.73,215.67,11.28259516]
[1734497376561,23.776884,215.71,215.65,11.28259516]
[1734497376905,35.05947916,215.71,215.64,11.28259516]
[1734497377101,35.05947916,215.71,215.65,11.28259516]
[1734497377102,23.776884,215.71,215.65,11.28259516]
[1734497377307,23.776884,215.71,215.66,11.28259516]
[1734497378039,11.28259516,215.7,215.63,11.28259516]
[1734497378202,23.776884,215.69,215.63,11.28259516]
[1734497378406,23.776884,215.69,215.6,11.28259516]
[1734497378407,35.05947916,215.67,215.6,11.28259516]
[1734497378607,35.05947916,215.66,215.59,11.28259516]
[1734497379013,23.776884,215.66,215.6,11.28259516]
[1734497379449,35.05947916,215.66,215.59,11.28259516]
[1734497380251,23.776884,215.66,215.6,11.28259516]
[1734497380606,35.05947916,215.66,215.59,11.28259516]
[1734497380928,23.776884,215.66,215.6,11.28259516]
[1734497383638,35.05947916,215.64,215.57,11.28259516]
[1734497384264,11.28259516,215.64,215.57,11.28259516]
[1734497384623,23.776884,215.63,215.57,11.28259516]
[1734497385843,23.776884,215.63,215.53,6.652]
[1734497385844,11.28259516,215.6,215.53,11.28259516]
[1734497386048,23.776884,215.63,215.51,2.0025]
[1734497386049,11.28259516,215.59,215.52,11.28259516]
[1734497386250,23.776884,215.58,215.54,11.28259516]
[1734497386634,35.05947916,215.6,215.53,11.28259516]
[1734497387231,11.28259516,215.59,215.52,11.28259516]
[1734497387435,35.05947916,215.58,215.51,11.28259516]
[1734497387636,23.776884,215.56,215.5,11.28259516]
[1734497387953,23.776884,215.56,215.45,2.5689696]
[1734497387954,35.05947916,215.56,215.49,11.28259516]
[1734497392062,34.55947916,215.56,215.49,11.28259516]
[1734497393041,11.28259516,215.55,215.49,11.28259516]
[1734497393768,23.276884,215.56,215.49,11.28259516]
[1734497393769,11.28259516,215.56,215.49,11.28259516]
[1734497393980,11.28259516,215.56,215.5,11.28259516]
[1734497394145,35.05947916,215.55,215.49,11.28259516]
[1734497395555,23.776884,215.55,215.5,11.28259516]
[1734497396067,35.05947916,215.55,215.49,11.28259516]
[1734497397473,1.9584,215.61,215.51,11.28259516]
[1734497397764,20.0,215.56,215.52,11.28259516]
[1734497397968,20.0,215.56,215.51,11.28259516]
[1734497398136,20.0,215.56,215.45,2.5689696]
[1734497398137,20.0,215.56,215.5,11.28259516]
[1734497398337,11.28259516,215.56,215.49,11.28259516]
[1734497398539,20.0,215.52,215.48,11.28259516]
[1734497398758,20.0,215.52,215.47,11.28259516]
[1734497399134,23.776884,215.51,215.47,11.28259516]
[1734497399333,23.776884,215.51,215.48,11.28259516]
[1734497401609,11.28259516,215.58,215.5,11.28259516]
[1734497401741,20.0,215.55,215.5,11.28259516]
[1734497401941,20.0,215.54,215.48,11.28259516]
[1734497402143,20.0,215.54,215.46,11.28259516]
[1734497402144,11.28259516,215.53,215.46,11.28259516]
[1734497402489,31.28259516,215.54,215.47,11.28259516]
[1734497403149,32.610861,215.53,215.46,11.28259516]
[1734497403356,23.776884,215.53,215.47,11.28259516]
[1734497403563,23.776884,215.53,215.49,11.28259516]
[1734497403746,23.776884,215.53,215.48,11.28259516]
[1734497403946,23.776884,215.49,215.45,0.5664696]
[1734497405145,35.05947916,215.5,215.45,0.5664696]
[1734497406491,11.28259516,215.48,215.45,0.5664696]
[1734497406657,35.05947916,215.46,215.45,0.5664696]
[1734497407170,23.776884,215.46,215.45,0.5664696]
[1734497408974,20.0,215.49,215.45,0.5664696]
[1734497409356,7.27485002,215.52,215.45,7.84131962]
[1734497410163,7.27485002,215.51,215.45,0.5664696]
[1734497410552,7.27485002,215.49,215.45,0.5664696]
[1734497410880,23.776884,215.48,215.45,0.5664696]
[1734497412067,6.624,215.55,215.45,7.84131962]
[1734497412277,20.0,215.52,215.45,7.84131962]
[1734497412478,23.776884,215.51,215.45,7.84131962]
[1734497412662,23.776884,215.52,215.46,7.27485002]
[1734497413958,31.05173402,215.52,215.45,7.84131962]
[1734497415950,23.776884,215.52,215.45,7.84131962]
[1734497416283,1.9919,215.57,215.45,7.84131962]
[1734497416284,7.27485002,215.55,215.48,7.27485002]
[1734497416643,7.27485002,215.55,215.45,0.5664696]
[1734497416886,7.27485002,215.53,215.46,7.27485002]
[1734497417478,31.05173402,215.52,215.45,0.5664696]
[1734497417797,31.05173402,215.52,215.45,7.84131962]
[1734497417959,7.27485002,215.51,215.45,0.5664696]
[1734497418279,31.05173402,215.5,215.45,0.5664696]
[1734497418661,23.776884,215.5,215.45,0.5664696]
[1734497419072,22.76323842,215.58,215.47,7.27485002]
[1734497419273,23.776884,215.54,215.47,7.27485002]
[1734497419703,7.27485002,215.54,215.47,7.27485002]
[1734497420279,23.776884,215.53,215.47,7.27485002]
[1734497421807,23.776884,215.53,215.45,0.5664696]
[1734497422108,31.05173402,215.53,215.45,7.84131962]
[1734497422310,7.27485002,215.51,215.45,0.5664696]
[1734497422513,7.27485002,215.5,215.45,0.5664696]
[1734497422713,7.27485002,215.52,215.45,0.5664696]
[1734497423023,23.776884,215.51,215.45,0.5664696]
[1734497423306,31.05173402,215.51,215.45,0.5664696]
[1734497424095,23.776884,215.51,215.45,7.84131962]
[1734497424298,31.05173402,215.52,215.45,7.84131962]
[1734497425677,7.27485002,215.53,215.45,7.84131962]
[1734497426011,23.776884,215.54,215.45,7.84131962]
[1734497426182,7.27485002,215.54,215.47,7.27485002]
[1734497426688,31.05173402,215.53,215.46,7.27485002]
[1734497427940,23.776884,215.53,215.47,7.27485002]
[1734497428095,31.05173402,215.54,215.47,7.27485002]
[1734497428406,7.27485002,215.53,215.46,7.27485002]
[1734497429184,7.27485002,215.55,215.48,7.27485002]
[1734497429385,23.776884,215.55,215.5,7.27485002]
[1734497429591,7.27485002,215.55,215.48,7.27485002]
[1734497430905,7.27485002,215.56,215.49,7.27485002]
[1734497431126,23.776884,215.54,215.48,7.27485002]
[1734497432144,23.776884,215.54,215.47,7.27485002]